bitfinex/quotes_BTCUSD_20250412
["timestamp","ask_amount","ask_price","bid_price","bid_amount"]
[1744478635211,0.00190144,84529.0,84528.0,0.52284991]
[1744478635763,0.00190144,84529.0,84528.0,0.52654442]
[1744478642108,0.00190144,84529.0,84528.0,0.52284991]
[1744478643274,0.00190144,84529.0,84528.0,0.36704991]
[1744478644172,0.04421884,84548.0,84547.0,0.236554]
[1744478644397,0.0458,84556.0,84553.0,0.236535]
[1744478644516,0.05593991,84556.0,84553.0,0.236535]
[1744478644951,0.05593991,84556.0,84554.0,0.00917243]
[1744478646009,0.00013991,84556.0,84554.0,0.24570543]
[1744478647776,0.00013991,84556.0,84555.0,0.12084154]
[1744478647989,4.078e-05,84556.0,84555.0,0.12084154]
[1744478648198,4.078e-05,84556.0,84555.0,0.13215302]
[1744478648804,4.078e-05,84556.0,84555.0,0.12978807]
[1744478650308,7.8e-07,84557.0,84555.0,0.13867158]
[1744478650524,0.00046658,84557.0,84556.0,0.35737054]
[1744478650738,0.00046658,84557.0,84556.0,0.3662185]
[1744478650996,5.8e-07,84557.0,84556.0,0.5218185]
[1744478651243,3.8e-07,84559.0,84558.0,0.576524]
[1744478651465,0.0004224,84579.0,84558.0,0.576524]
[1744478651466,5.8e-07,84563.0,84562.0,0.576512]
[1744478651711,5.8e-07,84563.0,84562.0,0.69735354]
[1744478651882,5.8e-07,84563.0,84562.0,0.85295354]
[1744478652116,5.8e-07,84563.0,84562.0,0.86174854]
[1744478652350,5.8e-07,84563.0,84562.0,0.36614854]
[1744478654953,5.8e-07,84563.0,84562.0,0.245307]
[1744478662669,0.04590058,84563.0,84562.0,0.008795]
[1744478663038,0.04590058,84563.0,84558.0,0.236521]
[1744478663272,0.04590058,84563.0,84562.0,0.00871845]
[1744478663876,0.04590058,84563.0,84558.0,0.236521]
[1744478664125,0.0465,84558.0,84555.0,0.23653]
[1744478664356,0.011826,84553.0,84549.0,0.236546]
[1744478664578,0.011826,84557.0,84550.0,0.236544]
[1744478664811,0.011826,84557.0,84550.0,0.236545]
[1744478665092,0.248356,84556.0,84551.0,0.236541]
[1744478665315,0.011826,84555.0,84551.0,0.236541]
[1744478665803,0.011826,84557.0,84552.0,0.236538]
[1744478666047,0.011826,84556.0,84552.0,0.236538]
[1744478666310,0.011827,84550.0,84547.0,0.0004658]
[1744478666531,0.011827,84552.0,84547.0,0.0004658]
[1744478666532,0.011826,84554.0,84547.0,0.2370178]
[1744478666752,0.011826,84554.0,84550.0,0.236545]
[1744478667849,0.011826,84553.0,84550.0,0.236545]
[1744478668624,0.011826,84553.0,84549.0,0.236546]
[1744478668856,0.011826,84554.0,84550.0,0.236544]
[1744478669055,0.011827,84550.0,84547.0,0.0004658]
[1744478669292,0.236549,84549.0,84547.0,0.0004658]
[1744478671729,0.011827,84550.0,84547.0,0.0004658]
[1744478672736,0.248375,84550.0,84547.0,0.0004658]
[1744478674435,0.236551,84549.0,84547.0,0.0004658]
[1744478674649,0.0461,84548.0,84547.0,0.0004658]
[1744478675542,0.06064085,84548.0,84547.0,0.0004658]
[1744478675767,0.11664085,84548.0,84547.0,0.0004658]
[1744478677771,0.10664085,84548.0,84547.0,0.0004658]
[1744478677997,0.11664085,84548.0,84547.0,0.0004658]
[1744478684652,0.57748239,84548.0,84547.0,0.0004658]
[1744478685911,0.57748239,84548.0,84547.0,8e-07]
[1744478686482,0.57948239,84548.0,84547.0,8e-07]
[1744478686692,0.236647,84514.0,84513.0,0.0008438]
[1744478686900,0.266647,84514.0,84513.0,0.00859295]
[1744478687100,0.266647,84514.0,84513.0,0.00098371]
[1744478688579,0.011831,84517.0,84513.0,0.00098371]
[1744478688753,0.011832,84516.0,84513.0,0.00859295]
[1744478689191,0.15544,84522.0,84513.0,0.02042495]
[1744478689419,0.011831,84523.0,84518.0,0.236633]
[1744478689635,0.011831,84523.0,84520.0,0.236629]
[1744478689855,0.011831,84521.0,84518.0,0.236633]
[1744478690155,0.011831,84521.0,84519.0,0.00776212]
[1744478690630,0.01141288,84521.0,84519.0,0.00776212]
[1744478690836,0.011831,84520.0,84515.0,0.236641]
[1744478691055,0.011831,84520.0,84517.0,0.236638]
[1744478691276,0.011831,84519.0,84515.0,0.236641]
[1744478691883,0.011831,84520.0,84516.0,0.236639]
[1744478692091,0.011831,84520.0,84516.0,0.24436178]
[1744478693308,0.011831,84520.0,84517.0,0.236636]
[1744478693516,0.011831,84518.0,84515.0,0.236644]
[1744478694120,0.011831,84519.0,84515.0,0.236644]
[1744478694756,0.3899,84538.0,84521.0,0.236627]
[1744478694757,0.01183,84525.0,84521.0,0.236627]
[1744478694987,0.011831,84521.0,84515.0,0.12084154]
[1744478695156,0.011831,84521.0,84516.0,0.011832]
[1744478695454,0.011831,84521.0,84515.0,0.12084154]
[1744478695455,0.011831,84518.0,84515.0,0.236643]
[1744478695854,0.011831,84519.0,84515.0,0.236643]
[1744478696673,0.011831,84517.0,84513.0,0.24132856]
[1744478697127,0.248457,84522.0,84517.0,0.236638]
[1744478697410,0.011831,84521.0,84517.0,0.236638]
[1744478697627,0.011831,84521.0,84516.0,0.236641]
[1744478697849,0.011831,84520.0,84516.0,0.236641]
[1744478698318,0.011831,84520.0,84515.0,0.00369585]
[1744478698319,0.011831,84518.0,84515.0,0.00369585]
[1744478698871,0.011831,84517.0,84514.0,0.236644]
[1744478700501,0.011831,84518.0,84514.0,0.236644]
[1744478700738,0.011831,84518.0,84514.0,0.24033985]
[1744478701666,0.011831,84517.0,84514.0,0.24033985]
[1744478702082,0.011831,84517.0,84514.0,0.236644]
[1744478702588,0.011831,84518.0,84514.0,0.236644]
[1744478703077,0.011831,84518.0,84515.0,0.00369585]
[1744478703724,0.011831,84518.0,84516.0,0.00369585]
[1744478704446,0.248467,84518.0,84516.0,0.00369585]
[1744478705130,0.011831,84521.0,84516.0,0.24033585]
[1744478705350,0.011831,84520.0,84517.0,0.00369585]
[1744478706123,0.011831,84521.0,84518.0,0.00369585]
[1744478707181,0.011831,84521.0,84519.0,0.00782556]
[1744478707400,0.011831,84521.0,84519.0,0.01152141]
[1744478708778,0.011831,84521.0,84520.0,0.00369585]
[1744478709267,0.011831,84521.0,84520.0,0.01152141]
[1744478709500,0.011831,84521.0,84520.0,0.00369585]
[1744478709681,0.011831,84521.0,84520.0,0.01152141]
[1744478709943,0.011831,84521.0,84520.0,0.00369585]
[1744478710172,0.011831,84521.0,84520.0,0.01152141]
[1744478710395,0.011831,84521.0,84520.0,0.01153421]
[1744478714865,0.011831,84523.0,84520.0,0.01153421]
[1744478715735,0.236627,84521.0,84520.0,0.01153421]
[1744478723388,0.236627,84521.0,84520.0,0.01984712]
[1744478726675,0.246627,84521.0,84520.0,0.01200876]
[1744478731713,0.236627,84521.0,84520.0,0.01200876]
[1744478731927,0.01183,84524.0,84520.0,0.01200876]
[1744478732148,0.011831,84523.0,84520.0,0.01200876]
[1744478732373,0.011831,84523.0,84521.0,0.00785806]
[1744478732602,0.011831,84523.0,84521.0,0.01986682]
[1744478733012,0.011831,84523.0,84522.0,0.00831291]
[1744478733239,0.011831,84523.0,84522.0,0.01200876]
[1744478733684,0.011831,84523.0,84522.0,0.01986682]
[1744478733908,0.248455,84523.0,84522.0,0.01986682]
[1744478735323,0.248455,84523.0,84522.0,0.01155391]
[1744478736401,0.248455,84523.0,84522.0,0.00369585]
[1744478737353,0.011831,84517.0,84514.0,0.236646]
[1744478737549,0.011831,84517.0,84515.0,0.007858]
[1744478737959,0.011831,84518.0,84515.0,0.007858]
[1744478738362,0.011831,84518.0,84516.0,0.00369592]
[1744478738786,0.011831,84518.0,84517.0,0.007858]
[1744478739443,0.011831,84518.0,84517.0,0.01155392]
[1744478741340,0.248464,84520.0,84517.0,0.01155392]
[1744478741963,0.248464,84520.0,84518.0,0.00369592]
[1744478742215,0.248464,84520.0,84519.0,0.007862]
[1744478743035,0.248464,84520.0,84519.0,0.01155792]
[1744478747787,0.248464,84520.0,84519.0,0.00369592]
[1744478749828,0.248464,84520.0,84519.0,0.01156506]
[1744478753007,0.248464,84520.0,84519.0,0.00369592]
[1744478755741,0.248464,84520.0,84519.0,0.01156506]
[1744478766382,0.248464,84520.0,84519.0,0.00369592]
[1744478766771,0.408464,84520.0,84519.0,0.01029304]
[1744478766982,0.408464,84520.0,84519.0,0.00369592]
[1744478767487,0.408464,84520.0,84519.0,0.01030772]
[1744478772811,0.408464,84520.0,84519.0,0.00369592]
[1744478773924,0.408464,84520.0,84519.0,0.01031852]
[1744478774146,0.408464,84520.0,84519.0,0.00369592]
[1744478774368,0.408464,84520.0,84519.0,0.01031852]
[1744478774584,0.408464,84520.0,84519.0,0.00369592]
[1744478775697,0.47160485,84520.0,84519.0,0.00369592]
[1744478775934,0.236647,84514.0,84513.0,0.00098371]
[1744478781244,0.236647,84514.0,84513.0,0.50098371]
[1744478782319,0.236647,84514.0,84513.0,0.50767006]
[1744478788900,0.011832,84516.0,84513.0,0.55737006]
[1744478789412,0.248476,84516.0,84513.0,0.55737006]
[1744478789898,0.236646,84515.0,84513.0,0.55737006]
[1744478795264,0.01183,84525.0,84521.0,0.248457]
[1744478795481,0.011831,84522.0,84518.0,0.236635]
[1744478795814,0.236619,84524.0,84518.0,0.236635]
[1744478795815,0.011831,84523.0,84520.0,0.23663]
[1744478796252,0.248449,84524.0,84520.0,0.23663]
[1744478796465,0.01183,84524.0,84520.0,0.23663]
[1744478796871,0.01183,84525.0,84521.0,0.236625]
[1744478797086,0.01183,84525.0,84521.0,0.24331282]
[1744478797399,0.01183,84524.0,84521.0,0.24331282]
[1744478799182,0.011829,84532.0,84527.0,0.01183]
[1744478799396,0.01183,84529.0,84524.0,0.01183]
[1744478799581,0.01183,84528.0,84523.0,0.011831]
[1744478799972,0.01183,84528.0,84525.0,0.236615]
[1744478800183,0.01183,84527.0,84523.0,0.236621]
[1744478801013,0.01183,84528.0,84524.0,0.236617]
[1744478802051,0.01183,84527.0,84524.0,0.236617]
[1744478802451,0.236592,84534.0,84524.0,0.236617]
[1744478802688,0.011829,84533.0,84524.0,0.236617]
[1744478802902,0.011829,84534.0,84526.0,0.236612]
[1744478803117,0.131829,84534.0,84531.0,0.236599]
[1744478803333,0.12,84534.0,84533.0,0.236593]
[1744478803555,0.12,84534.0,84531.0,0.236599]
[1744478804506,0.12,84534.0,84532.0,0.236594]
[1744478804719,0.122,84534.0,84532.0,0.236594]
[1744478804968,0.003,84534.0,84532.0,0.236594]
[1744478805185,0.005,84534.0,84532.0,0.236594]
[1744478806373,0.005,84534.0,84532.0,0.231594]
[1744478806815,0.004,84534.0,84532.0,0.231594]
[1744478807004,0.011828,84538.0,84535.0,0.236587]
[1744478807492,0.011828,84539.0,84535.0,0.236587]
[1744478807951,0.011828,84538.0,84535.0,0.236587]
[1744478808386,0.02876634,84538.0,84536.0,0.00660541]
[1744478808600,0.236582,84537.0,84536.0,0.00660541]
[1744478808814,0.236582,84537.0,84535.0,0.001]
[1744478809213,0.01310582,84538.0,84536.0,0.00660541]
[1744478809572,0.011829,84535.0,84532.0,0.236594]
[1744478809779,0.011829,84533.0,84529.0,0.236603]
[1744478809980,0.011829,84534.0,84530.0,0.2366]
[1744478810555,0.011829,84535.0,84531.0,0.236597]
[1744478810758,0.011829,84534.0,84531.0,0.236597]
[1744478811142,0.001,84533.0,84531.0,0.236597]
[1744478811405,0.012829,84533.0,84530.0,0.2366]
[1744478812116,0.012829,84533.0,84531.0,0.00660541]
[1744478812847,0.011829,84533.0,84531.0,0.00660541]
[1744478813769,0.012829,84533.0,84531.0,0.00660541]
[1744478814150,0.001,84533.0,84531.0,0.00660541]
[1744478814342,0.001,84533.0,84531.0,0.24320241]
[1744478814536,0.001,84533.0,84531.0,0.00660541]
[1744478819119,0.001,84533.0,84526.0,0.236611]
[1744478819120,0.011829,84532.0,84526.0,0.236611]
[1744478819412,0.011829,84532.0,84527.0,0.12742288]
[1744478819645,0.248427,84532.0,84527.0,0.12742288]
[1744478819858,0.01183,84530.0,84527.0,0.12742288]
[1744478821024,0.01183,84530.0,84527.0,0.12842288]
[1744478824021,0.011829,84532.0,84527.0,0.12842288]
[1744478824995,0.011829,84533.0,84527.0,0.36503088]
[1744478825407,0.011829,84532.0,84529.0,0.236604]
[1744478825972,0.011829,84532.0,84530.0,0.00658134]
[1744478827335,0.012829,84532.0,84530.0,0.00658134]
[1744478828827,0.399427,84532.0,84530.0,0.00658134]
[1744478829342,0.236647,84514.0,84513.0,0.50098371]
[1744478829583,0.406647,84514.0,84513.0,0.50644126]
[1744478829778,0.236647,84514.0,84513.0,0.50644126]
[1744478830509,0.248474,84516.0,84513.0,0.50644126]
[1744478830735,0.248474,84516.0,84513.0,0.50744126]
[1744478833322,0.248474,84516.0,84513.0,0.50644126]
[1744478833727,0.248474,84516.0,84513.0,0.50744126]
[1744478834138,0.011832,84516.0,84513.0,0.74409026]
[1744478837210,0.011831,84517.0,84513.0,0.74409026]
[1744478837890,0.011832,84516.0,84513.0,0.50744126]
[1744478838117,0.011832,84516.0,84513.0,0.50644126]
[1744478839527,0.011831,84517.0,84514.0,0.236647]
[1744478839781,0.011831,84517.0,84515.0,0.00550093]
[1744478841208,0.011831,84517.0,84515.0,0.00650093]
[1744478842107,0.248469,84518.0,84515.0,0.00650093]
[1744478843009,0.248469,84518.0,84515.0,0.00550093]
[1744478843221,0.011831,84519.0,84515.0,0.00650093]
[1744478843428,0.011831,84520.0,84516.0,0.236641]
[1744478843630,0.171831,84520.0,84516.0,0.236641]
[1744478843850,0.171831,84520.0,84517.0,0.00554964]
[1744478845042,0.171831,84520.0,84517.0,0.24218664]
[1744478845294,0.16,84520.0,84517.0,0.24218664]
[1744478845480,0.16,84520.0,84518.0,0.236633]
[1744478846003,0.16,84520.0,84519.0,0.00554964]
[1744478847396,0.16,84520.0,84519.0,0.00654964]
[1744478849769,0.011831,84522.0,84519.0,0.00654964]
[1744478849963,0.021831,84522.0,84519.0,0.00654964]
[1744478850168,0.01,84522.0,84519.0,0.24317964]
[1744478850387,0.011831,84522.0,84519.0,0.24317964]
[1744478850639,0.011831,84523.0,84519.0,0.24317964]
[1744478850860,0.01,84523.0,84521.0,0.236627]
[1744478851075,0.01183,84528.0,84524.0,0.236617]
[1744478851283,0.011831,84523.0,84519.0,0.001]
[1744478851488,0.16,84523.0,84519.0,0.001]
[1744478851698,0.171831,84523.0,84519.0,0.001]
[1744478852329,0.011831,84522.0,84519.0,0.236631]
[1744478852535,0.011831,84522.0,84519.0,0.001]
[1744478852744,0.23662,84524.0,84519.0,0.237631]
[1744478852745,0.011831,84523.0,84519.0,0.237631]
[1744478853156,0.161831,84523.0,84519.0,0.236631]
[1744478853386,0.161831,84523.0,84519.0,0.237631]
[1744478854883,0.15,84523.0,84520.0,0.236628]
[1744478855551,0.161831,84523.0,84520.0,0.236628]
[1744478856010,0.161831,84523.0,84520.0,0.237628]
[1744478856444,0.011831,84523.0,84520.0,0.237628]
[1744478857021,0.011831,84523.0,84521.0,0.00554015]
[1744478858378,0.01183,84524.0,84521.0,0.00554015]
[1744478859210,0.01183,84524.0,84521.0,0.001]
[1744478859418,0.01183,84524.0,84522.0,0.00554015]
[1744478859630,0.236621,84523.0,84522.0,0.00554015]
[1744478860047,0.236621,84523.0,84521.0,0.001]
[1744478860253,0.236621,84523.0,84522.0,0.00554015]
[1744478861669,0.010831,84520.0,84517.0,0.236637]
[1744478862091,0.011831,84521.0,84517.0,0.236637]
[1744478862958,0.010831,84521.0,84517.0,0.236637]
[1744478864644,0.01183,84524.0,84517.0,0.236637]
[1744478864850,0.011831,84522.0,84517.0,0.236637]
[1744478865073,0.011831,84523.0,84519.0,0.236631]
[1744478865328,0.01183,84524.0,84519.0,0.236631]
[1744478865329,0.01183,84524.0,84521.0,0.236627]
[1744478866021,0.01183,84528.0,84522.0,0.236622]
[1744478866246,0.01,84528.0,84523.0,0.236619]
[1744478866460,0.01,84528.0,84525.0,0.236615]
[1744478866893,0.02183,84528.0,84525.0,0.236615]
[1744478867115,0.011829,84534.0,84528.0,0.236605]
[1744478867345,0.011829,84531.0,84528.0,0.236605]
[1744478867565,0.24842,84534.0,84529.0,0.236602]
[1744478867785,0.34,84535.0,84533.0,0.236591]
[1744478868047,0.15404,84536.0,84533.0,0.24842]
[1744478868343,0.34,84546.0,84531.0,0.011829]
[1744478868344,0.011827,84548.0,84538.0,0.011828]
[1744478868567,0.01207309,84546.0,84544.0,0.236562]
[1744478868819,0.01207309,84546.0,84545.0,0.00540823]
[1744478869015,0.011827,84548.0,84545.0,0.00540823]
[1744478869245,0.011827,84547.0,84544.0,0.236562]
[1744478869470,0.011827,84547.0,84546.0,0.00540823]
[1744478869900,0.011827,84547.0,84546.0,0.00013991]
[1744478870234,0.011827,84547.0,84546.0,0.00554814]
[1744478870429,0.011827,84547.0,84546.0,0.00013991]
[1744478870651,0.011827,84547.0,84546.0,0.00554814]
[1744478870877,0.011827,84547.0,84546.0,0.00013991]
[1744478871282,0.017827,84547.0,84546.0,0.00654814]
[1744478871715,0.020827,84547.0,84546.0,0.00654814]
[1744478872163,0.407381,84547.0,84546.0,0.00654814]
[1744478872365,0.257381,84547.0,84546.0,0.00654814]
[1744478873647,0.367381,84547.0,84546.0,0.00654814]
[1744478873887,0.427381,84547.0,84546.0,0.00654814]
[1744478874110,0.427381,84547.0,84546.0,0.00113991]
[1744478874346,0.257381,84547.0,84546.0,0.00654814]
[1744478874587,0.257381,84547.0,84546.0,0.00113991]
[1744478874809,0.417381,84547.0,84546.0,0.00113991]
[1744478875584,0.417381,84547.0,84546.0,0.00654814]
[1744478875809,0.43192185,84547.0,84546.0,0.00113991]
[1744478876012,0.43192185,84547.0,84546.0,0.00654814]
[1744478876189,0.43192185,84547.0,84546.0,0.00113991]
[1744478880991,0.417381,84547.0,84546.0,0.00654055]
[1744478881194,0.257381,84547.0,84546.0,0.00113991]
[1744478881375,0.437381,84547.0,84546.0,0.00113991]
[1744478881575,0.437381,84547.0,84546.0,0.00654055]
[1744478882404,0.257381,84547.0,84546.0,0.00654055]
[1744478882605,0.407381,84547.0,84546.0,0.00654055]
[1744478882813,0.257381,84547.0,84546.0,0.00654055]
[1744478883665,0.417381,84547.0,84546.0,0.00654055]
[1744478884097,0.257381,84547.0,84546.0,0.00654055]
[1744478884312,0.248375,84550.0,84546.0,0.00654055]
[1744478884523,0.011827,84548.0,84546.0,0.00654055]
[1744478885153,0.011827,84548.0,84546.0,0.00554055]
[1744478885361,0.009,84550.0,84546.0,0.00654055]
[1744478885562,0.05,84548.0,84547.0,0.236552]
[1744478885791,0.05,84548.0,84547.0,0.24195264]
[1744478887647,0.055,84548.0,84547.0,0.24195264]
[1744478887862,0.058,84548.0,84547.0,0.24195264]
[1744478888088,0.059,84548.0,84547.0,0.24195264]
[1744478888518,0.056,84548.0,84547.0,0.24195264]
[1744478888886,0.058,84548.0,84547.0,0.24195264]
[1744478891394,0.008,84548.0,84547.0,0.24195264]
[1744478892092,0.008,84548.0,84547.0,0.28855264]
[1744478892308,0.008,84548.0,84547.0,0.40939418]
[1744478892771,0.008,84548.0,84547.0,0.45699418]
[1744478893210,0.008,84548.0,84547.0,0.49012181]
[1744478893423,0.006,84548.0,84547.0,0.49012181]
[1744478893879,0.0004229,84553.0,84552.0,0.33074]
[1744478894089,0.0004229,84553.0,84552.0,0.63870917]
[1744478894288,0.0004229,84553.0,84552.0,0.65574847]
[1744478894709,0.0004229,84562.0,84552.0,0.65574847]
[1744478894710,7e-07,84557.0,84556.0,0.576529]
[1744478894966,7e-07,84557.0,84556.0,1.23389817]
[1744478895193,1.8e-07,84563.0,84561.0,0.236515]
[1744478895451,1.8e-07,84563.0,84562.0,0.5905336]
[1744478895691,1.8e-07,84563.0,84562.0,0.59326285]
[1744478897007,1.8e-07,84563.0,84562.0,0.563828]
[1744478897821,1.8e-07,84563.0,84562.0,0.565828]
[1744478904563,1.8e-07,84563.0,84562.0,0.719468]
[1744478907400,1.8e-07,84563.0,84562.0,0.72770261]
[1744478907841,1.8e-07,84563.0,84562.0,0.725841]
[1744478910341,0.002,84589.0,84570.0,0.23649]
[1744478910598,0.002,84589.0,84571.0,0.12320594]
[1744478910867,0.002,84589.0,84571.0,0.17351581]
[1744478911989,0.002,84589.0,84571.0,0.18175042]
[1744478912193,0.002,84589.0,84571.0,0.1874432]
[1744478913317,1e-06,84579.0,84577.0,0.34]
[1744478913533,1e-06,84579.0,84578.0,0.46320561]
[1744478913773,1e-06,84579.0,84578.0,0.46557285]
[1744478914032,1e-06,84579.0,84578.0,0.47750024]
[1744478914279,1e-06,84579.0,84578.0,0.71396824]
[1744478914718,9e-08,84579.0,84578.0,0.71396824]
[1744478915614,9e-08,84579.0,84578.0,0.71496824]
[1744478916455,9e-08,84579.0,84578.0,0.86756824]
[1744478916662,0.00190098,84589.0,84588.0,0.23644]
[1744478916872,0.00204072,84589.0,84588.0,0.35728154]
[1744478917094,0.00204072,84589.0,84588.0,0.36196654]
[1744478917317,0.00204072,84589.0,84588.0,0.37020115]
[1744478917535,0.00204072,84589.0,84588.0,0.37389393]
[1744478918722,0.00204072,84589.0,84588.0,0.37489393]
[1744478925609,0.00204072,84589.0,84588.0,0.40795723]
[1744478925860,0.0004228,84591.0,84590.0,0.236434]
[1744478926320,0.0004228,84591.0,84590.0,0.24104106]
[1744478926534,0.0004228,84591.0,84590.0,0.25296845]
[1744478927450,0.0004228,84591.0,84590.0,0.25396845]
[1744478927675,0.0463228,84591.0,84590.0,0.25027567]
[1744478928977,0.0463228,84591.0,84590.0,0.01384167]
[1744478929441,0.0463228,84591.0,84590.0,0.25027567]
[1744478929672,0.0463228,84591.0,84590.0,0.24204106]
[1744478932853,0.23086365,84591.0,84590.0,0.00560706]
[1744478933127,0.27886365,84591.0,84590.0,0.00560706]
[1744478933353,0.61886365,84591.0,84590.0,0.001]
[1744478933570,0.73970519,84591.0,84590.0,0.001]
[1744478933797,0.011825,84565.0,84562.0,0.08899639]
[1744478934025,0.236509,84564.0,84562.0,0.08899639]
[1744478934272,0.248332,84565.0,84563.0,0.00476276]
[1744478935063,0.248327,84566.0,84563.0,0.00476276]
[1744478935359,0.010825,84566.0,84563.0,0.00476276]
[1744478935607,0.247328,84566.0,84563.0,0.00476276]
[1744478935816,0.247328,84566.0,84563.0,0.00576276]
[1744478936035,0.236507,84564.0,84563.0,0.00476276]
[1744478936168,0.247328,84566.0,84563.0,0.00576276]
[1744478936390,0.236507,84564.0,84563.0,0.00576276]
[1744478937723,0.236507,84564.0,84563.0,0.00476276]
[1744478938047,0.236507,84564.0,84563.0,0.001]
[1744478938476,0.236507,84564.0,84563.0,0.00593827]
[1744478938734,0.236507,84564.0,84563.0,0.001]
[1744478939164,0.247328,84566.0,84563.0,0.001]
[1744478939911,0.236506,84565.0,84563.0,0.001]
[1744478940365,0.247328,84566.0,84563.0,0.001]
[1744478940593,0.236507,84564.0,84563.0,0.001]
[1744478941064,0.406507,84564.0,84563.0,0.001]
[1744478941310,0.011825,84560.0,84556.0,0.00046609]
[1744478941771,0.011825,84561.0,84557.0,0.236526]
[1744478942421,0.011825,84562.0,84558.0,0.236521]
[1744478942850,0.010825,84562.0,84558.0,0.236521]
[1744478943077,0.011825,84561.0,84558.0,0.236521]
[1744478943335,0.010825,84562.0,84558.0,0.236521]
[1744478943572,0.011825,84561.0,84558.0,0.236521]
[1744478944223,0.011825,84560.0,84557.0,0.001]
[1744478944514,0.011826,84559.0,84556.0,0.00046609]
[1744478944764,0.011825,84560.0,84556.0,0.00046609]
[1744478945000,0.01454085,84557.0,84556.0,0.00046609]
[1744478945221,0.16454085,84557.0,84556.0,0.00046609]
[1744478945454,0.346547,84559.0,84556.0,0.00046609]
[1744478945708,0.110026,84559.0,84556.0,0.00046609]
[1744478945941,0.060326,84559.0,84556.0,0.00046609]
[1744478946175,0.25106685,84557.0,84556.0,0.00046609]
[1744478946433,0.45076685,84557.0,84556.0,0.00046609]
[1744478947141,0.45076685,84557.0,84556.0,0.50046609]
[1744478947373,0.060326,84559.0,84556.0,0.50046609]
[1744478947630,0.29685,84559.0,84556.0,0.50552702]
[1744478948125,0.060326,84559.0,84556.0,0.50552702]
[1744478948820,0.236524,84558.0,84556.0,0.50552702]
[1744478949039,0.060326,84559.0,84556.0,0.50552702]
[1744478949543,0.236524,84558.0,84556.0,0.50552702]
[1744478952079,0.0485,84559.0,84556.0,0.74205402]
[1744478952508,0.011826,84559.0,84556.0,0.74205402]
[1744478953176,0.011825,84560.0,84556.0,0.74205402]
[1744478956244,0.011825,84561.0,84557.0,0.236524]
[1744478956715,0.011826,84559.0,84557.0,0.0050924]
[1744478960805,0.248349,84559.0,84557.0,0.0050924]
[1744478965536,0.0456,84558.0,84557.0,0.0050924]
[1744478965744,0.0456,84558.0,84556.0,0.50046609]
[1744478968714,0.011826,84559.0,84556.0,0.50046609]
[1744478968950,0.011826,84559.0,84557.0,0.00830468]
[1744478969418,0.011826,84559.0,84558.0,0.00830468]
[1744478982262,0.181826,84559.0,84558.0,0.00830468]
[1744478983319,0.19636685,84559.0,84558.0,0.00830468]
[1744478986452,0.02636685,84559.0,84558.0,0.00830468]
[1744478986874,0.010825,84562.0,84558.0,0.00830468]
[1744478987084,0.011825,84561.0,84558.0,0.00830468]
[1744478987477,0.23652,84560.0,84559.0,0.00830468]
[1744478988336,0.38652,84560.0,84559.0,0.00830468]
[1744478988751,0.236524,84558.0,84556.0,0.50046609]
[1744478988931,0.011826,84559.0,84556.0,0.50046609]
[1744478989407,0.011826,84559.0,84556.0,0.73699509]
[1744478989623,0.011826,84559.0,84556.0,0.50046609]
[1744478989845,0.011826,84559.0,84556.0,0.73699409]
[1744478990071,0.248343,84561.0,84556.0,0.50046609]
[1744478990072,0.011825,84560.0,84556.0,0.50046609]
[1744478990320,0.011826,84559.0,84556.0,0.50046609]
[1744478991293,0.25106685,84557.0,84556.0,0.50046609]
[1744478991508,0.01454085,84557.0,84556.0,0.50046609]
[1744478992877,0.01298452,84557.0,84556.0,0.50046609]
[1744478994428,0.011825,84564.0,84556.0,0.73699209]
[1744478994862,0.01454085,84563.0,84556.0,0.73699209]
[1744478995112,0.02636585,84563.0,84560.0,0.236516]
[1744478995258,0.01454085,84563.0,84560.0,0.236516]
[1744478995954,0.011825,84561.0,84556.0,0.73699209]
[1744478996174,0.248342,84561.0,84556.0,0.73699209]
[1744478996373,0.011826,84559.0,84556.0,0.73699209]
[1744478996576,0.011825,84560.0,84556.0,0.50046609]
[1744478996916,0.011826,84559.0,84556.0,0.50046609]
[1744478998912,0.011825,84560.0,84557.0,0.236526]
[1744478999524,0.011825,84561.0,84557.0,0.236526]
[1744479000933,0.011825,84563.0,84560.0,0.236515]
[1744479001139,0.01454085,84562.0,84560.0,0.236515]
[1744479001354,0.34,84566.0,84563.0,0.236508]
[1744479001577,0.011825,84562.0,84557.0,0.236526]
[1744479001811,0.248348,84559.0,84556.0,0.50046609]
[1744479002081,0.011825,84560.0,84556.0,0.50046609]
[1744479002322,0.161825,84560.0,84556.0,0.50046609]
[1744479002757,0.011826,84559.0,84556.0,0.50046609]
[1744479002974,0.011826,84559.0,84556.0,0.73699409]
[1744479003210,0.011825,84560.0,84556.0,0.73699409]
[1744479003431,0.011825,84563.0,84556.0,0.73699409]
[1744479003432,0.011825,84564.0,84559.0,0.236519]
[1744479003848,0.20544595,84570.0,84569.0,0.236493]
[1744479004111,0.01454085,84570.0,84569.0,0.236493]
[1744479004771,0.01454085,84570.0,84567.0,0.236496]
[1744479005020,0.01155755,84580.0,84575.0,0.011823]
[1744479005271,0.23644,84588.0,84561.0,0.0476]
[1744479005272,0.4273131,84600.0,84587.0,0.23644]
[1744479005505,0.4273131,84600.0,84580.0,0.011823]
[1744479005506,0.17,84589.0,84580.0,0.011823]
[1744479005708,0.181821,84589.0,84585.0,0.236446]
[1744479006203,0.17,84589.0,84586.0,0.236443]
[1744479006668,0.011822,84588.0,84585.0,0.236446]
[1744479006807,0.041822,84588.0,84585.0,0.236446]
[1744479007046,0.03,84588.0,84587.0,0.236442]
[1744479011933,0.0004228,84591.0,84590.0,0.236434]
[1744479021936,0.0004228,84591.0,84590.0,0.332434]
[1744479022161,0.0004228,84591.0,84590.0,0.45327554]
[1744479027985,3e-07,84598.0,84597.0,0.576415]
[1744479028213,3e-07,84598.0,84597.0,0.79225654]
[1744479028448,3e-07,84598.0,84597.0,0.80413948]
[1744479028900,3e-07,84598.0,84597.0,0.95689948]
[1744479030400,8.6e-07,84598.0,84597.0,0.95689948]
[1744479030620,8.6e-07,84598.0,84597.0,0.98987728]